bitfinex/quotes_SOLUSD_20250917
["timestamp","ask_amount","ask_price","bid_price","bid_amount"]
[1758067201354,0.06,237.04,237.03,11.91522153]
[1758067203658,0.06,237.06,237.04,0.28432314]
[1758067203865,0.06,237.06,237.05,15.01176907]
[1758067204033,0.06,237.06,237.05,14.01744593]
[1758067204234,0.06,237.06,237.03,10.48901087]
[1758067204554,2.05035816,237.05,237.03,8.8]
[1758067204758,0.06,237.06,237.01,0.03]
[1758067205351,0.06,237.06,237.02,27.52]
[1758067206649,0.06,237.06,237.03,13.59559401]
[1758067206849,0.06,237.06,237.05,13.59559401]
[1758067207440,0.06,237.06,237.05,15.28460489]
[1758067208258,0.06,237.06,237.05,19.50312418]
[1758067208646,0.06,237.06,237.05,52.16312418]
[1758067210335,0.06,237.06,237.05,19.50312418]
[1758067210542,0.06,237.06,237.05,50.4741133]
[1758067210844,0.06,237.06,237.05,123.1741133]
[1758067211468,0.06,237.06,237.05,123.8641133]
[1758067212161,0.06,237.07,237.06,0.28432314]
[1758067212343,0.06,237.09,237.08,0.28432314]
[1758067212543,0.06,237.09,237.08,87.69171569]
[1758067212755,0.06,237.09,237.08,88.95850021]
[1758067213865,0.06,237.09,237.08,87.98417707]
[1758067214080,0.06,237.09,237.08,124.86216256]
[1758067215467,0.06,237.09,237.08,92.20216256]
[1758067215654,0.06,237.09,237.08,124.86216256]
[1758067216769,0.06,237.09,237.08,52.16216256]
[1758067220061,0.06,237.09,237.08,38.56656855]
[1758067220668,0.06,237.09,237.08,19.50216256]
[1758067221070,0.06,237.09,237.08,52.85216256]
[1758067221363,0.06,237.09,237.08,53.1364857]
[1758067223457,0.06,237.09,237.08,56.51420303]
[1758067223762,0.06,237.09,237.08,42.91860902]
[1758067225976,0.06,237.09,237.08,56.49420303]
[1758067227678,0.06,237.11,237.09,13.87991715]
[1758067227876,0.06,237.11,237.1,46.94168011]
[1758067228056,0.06,237.11,237.1,47.63168011]
[1758067228682,0.06,237.11,237.1,49.32004936]
[1758067231175,0.06,237.11,237.1,53.53767905]
[1758067231554,0.06,237.11,237.1,126.23767905]
[1758067231754,0.06,237.11,237.1,93.17591609]
[1758067232357,0.06,237.11,237.1,125.81591609]
[1758067240486,0.06,237.11,237.1,93.17591609]
[1758067240662,0.06,237.11,237.1,125.79591609]
[1758067244287,0.06,237.11,237.1,92.20159295]
[1758067244488,0.06,237.11,237.1,1.68836925]
[1758067244690,0.06,237.11,237.1,32.62]
[1758067244985,4.27751996,237.11,237.1,32.62]
[1758067245392,4.27751996,237.11,237.09,0.03]
[1758067245573,4.27751996,237.11,237.1,32.62]
[1758067245764,6.3242133,237.11,237.09,0.03]
[1758067245964,4.27751996,237.11,237.1,32.62]
[1758067246193,6.32389018,237.11,237.1,32.62]
[1758067246692,6.32389018,237.11,237.09,0.03]
[1758067246908,2.04637022,237.1,237.09,0.03]
[1758067247493,3.73573776,237.1,237.09,0.03]
[1758067247980,4.0200609,237.1,237.09,0.03]
[1758067248489,34.23503148,237.1,237.09,0.03]
[1758067248671,37.04572492,237.1,237.09,0.03]
[1758067252202,37.04317066,237.1,237.09,0.03]
[1758067254306,39.59559401,237.07,237.06,0.03]
[1758067254477,26.14216157,237.03,236.98,0.03]
[1758067254677,28.32266617,237.03,236.98,0.03]
[1758067255185,1.97447589,237.03,236.98,0.03]
[1758067255590,1.69015275,237.03,236.98,0.03]
[1758067255814,26.0,237.07,236.98,0.7]
[1758067256003,26.0,237.03,236.99,0.67]
[1758067257684,26.0,237.03,237.0,0.7]
[1758067259497,30.21887524,237.03,237.0,0.7]
[1758067259680,4.21887524,237.03,237.0,0.7]
[1758067260785,30.21887524,237.03,237.0,0.03]
[1758067262581,30.50319838,237.03,237.0,0.03]
[1758067262998,4.21862436,237.05,237.02,0.71]
[1758067263200,0.28432314,237.04,237.02,0.03]
[1758067263584,4.50319838,237.03,237.02,0.03]
[1758067264497,30.50319838,237.03,237.02,0.03]
[1758067264683,32.53454881,237.03,237.02,0.03]
[1758067265320,0.28432314,237.02,237.0,0.03]
[1758067265615,0.28432314,237.02,236.98,1e-08]
[1758067265616,4.50391046,236.99,236.98,1e-08]
[1758067265817,30.50391046,236.99,236.98,1e-08]
[1758067266487,4.50391046,236.99,236.98,1e-08]
[1758067266686,30.50391046,236.99,236.98,1e-08]
[1758067268246,4.50391046,236.99,236.98,1e-08]
[1758067269626,30.50391046,236.99,236.98,1e-08]
[1758067270024,4.50391046,236.99,236.98,1e-08]
[1758067270339,30.50391046,236.99,236.98,1e-08]
[1758067273433,4.50391046,236.99,236.98,1e-08]
[1758067273634,30.50391046,236.99,236.98,1e-08]
[1758067275235,32.70821682,236.99,236.98,1e-08]
[1758067275641,32.70821682,236.99,236.96,1e-08]
[1758067275642,0.28432314,236.97,236.96,1e-08]
[1758067275844,15.9026786,236.97,236.96,1e-08]
[1758067276531,26.0,236.94,236.87,0.65]
[1758067276851,26.28432314,236.92,236.87,0.65]
[1758067277229,30.50515717,236.92,236.87,0.65]
[1758067277554,30.50515717,236.92,236.85,0.65]
[1758067278650,30.50515717,236.92,236.86,0.65]
[1758067278950,4.50515717,236.92,236.81,0.1]
[1758067279152,4.50515717,236.92,236.91,0.75]
[1758067283149,30.50515717,236.92,236.91,0.75]
[1758067286645,26.0,236.94,236.91,0.75]
[1758067287249,28.02809209,236.93,236.91,0.75]
[1758067287461,26.0,236.93,236.91,0.75]
[1758067287760,2.20430636,236.99,236.91,4.97101207]
[1758067288060,2.02824381,236.98,236.92,0.65]
[1758067288252,2.02824381,236.97,236.92,0.65]
[1758067288554,26.0,236.99,236.93,4.22065588]
[1758067288555,1.30824381,236.96,236.93,4.22065588]
[1758067288745,26.0,236.99,236.93,4.22065588]
[1758067288947,26.0,236.99,236.94,0.65]
[1758067289449,4.21888867,237.03,236.94,0.65]
[1758067289763,26.0,237.02,236.94,0.65]
[1758067289968,26.0,237.0,236.94,0.65]
[1758067290334,26.0,237.0,236.95,4.22029964]
[1758067290562,26.0,237.02,236.96,0.65]
[1758067290758,2.79557317,237.01,236.96,0.65]
[1758067290964,26.0,237.02,236.96,0.65]
[1758067292560,4.21918235,237.02,236.96,0.65]
[1758067292745,4.27918235,237.02,236.96,4.87009581]
[1758067292951,4.27918235,237.02,236.97,0.65]
[1758067293267,0.06,237.02,236.97,0.65]
[1758067293460,0.06,237.04,236.97,0.65]
[1758067293461,0.06,237.04,236.98,13.59559401]
[1758067293663,0.06,237.04,236.99,0.65]
[1758067294765,0.06,237.04,237.0,4.21940928]
[1758067294964,0.06,237.04,237.01,0.65]
[1758067296846,0.06,237.04,237.03,13.59559401]
[1758067297050,0.06,237.04,237.03,14.31559401]
[1758067299179,0.06,237.04,237.03,51.13446925]
[1758067299893,0.06,237.04,237.03,51.41879239]
[1758067300187,1e-08,237.05,237.04,0.28432314]
[1758067300363,1e-08,237.05,237.04,145.89991715]
[1758067301256,1e-08,237.05,237.04,150.11861441]
[1758067303279,1e-08,237.05,237.04,117.51861441]
[1758067303479,1e-08,237.05,237.04,150.11861441]
[1758067303681,1e-08,237.05,237.04,117.51861441]
[1758067304073,1e-08,237.05,237.04,150.11861441]
[1758067304582,1e-08,237.05,237.04,123.83429127]
[1758067305656,1e-08,237.05,237.04,91.23429127]
[1758067305984,1e-08,237.05,237.04,50.41429127]
[1758067306579,1e-08,237.05,237.04,51.13429127]
[1758067308287,1e-08,237.05,237.03,72.7]
[1758067308584,1e-08,237.05,237.04,32.58]
[1758067309762,1e-08,237.05,237.04,36.79869726]
[1758067310961,1e-08,237.05,237.04,32.61]
[1758067314086,1e-08,237.05,237.04,0.03]
[1758067314288,1e-08,237.05,237.04,32.61]
[1758067315289,1e-08,237.05,237.04,0.03]
[1758067315589,1e-08,237.05,237.04,33.33]
[1758067316091,1e-08,237.05,237.04,51.14429127]
[1758067317564,1e-08,237.05,237.04,18.56429127]
[1758067317771,1e-08,237.05,237.04,46.20559401]
[1758067317987,1e-08,237.05,237.04,0.03]
[1758067317988,0.67000001,237.05,237.04,0.03]
[1758067318491,0.67000001,237.05,237.04,32.61]
[1758067319097,4.8885193,237.05,237.04,32.61]
[1758067319483,1e-08,237.05,237.04,32.61]
[1758067320775,4.8885193,237.05,237.04,32.61]
[1758067322798,30.8885193,237.05,237.04,0.03]
[1758067323094,32.94063799,237.05,237.04,0.03]
[1758067324076,44.76843645,237.05,237.04,0.03]
[1758067324276,26.0,237.02,236.96,9.8]
[1758067324498,0.28432314,237.0,236.91,0.13]
[1758067324696,0.28432314,237.0,236.91,32.71]
[1758067324697,0.67,236.99,236.91,32.71]
[1758067324883,0.28432314,237.0,236.91,32.71]
[1758067324884,0.67,236.98,236.91,32.71]
[1758067325090,0.67,236.97,236.91,32.71]
[1758067325297,26.0,236.95,236.91,32.71]
[1758067325701,26.67,236.95,236.91,32.71]
[1758067326199,26.0,236.95,236.91,32.71]
[1758067327201,0.67,236.97,236.91,32.71]
[1758067328405,26.0,236.96,236.91,32.71]
[1758067328705,26.67,236.96,236.91,32.71]
[1758067329276,0.67,236.95,236.91,32.71]
[1758067329606,26.0,236.94,236.91,32.71]
[1758067330593,0.67,236.93,236.91,0.13]
[1758067330793,0.67,236.92,236.91,0.13]
[1758067331406,5.17515717,236.92,236.91,0.13]
[1758067337106,4.50515717,236.92,236.91,0.13]
[1758067338109,5.17515717,236.92,236.91,0.13]
[1758067342996,30.50515717,236.92,236.91,0.13]
[1758067344112,30.22083403,236.92,236.91,0.13]
[1758067344313,4.22029964,236.95,236.91,0.84]
[1758067344722,4.22029964,236.95,236.92,0.71]
[1758067345018,26.0,236.92,236.91,0.13]
[1758067345619,26.67,236.92,236.91,0.13]
[1758067345812,26.0,236.92,236.91,0.13]
[1758067346015,26.0,236.92,236.91,0.84]
[1758067346198,30.22083403,236.92,236.91,0.84]
[1758067347021,30.22083403,236.92,236.91,0.13]
[1758067347226,30.22083403,236.92,236.91,0.84]
[1758067350222,26.0,236.92,236.91,0.84]
[1758067350417,26.0,236.93,236.91,0.84]
[1758067351200,4.22046665,236.95,236.91,0.84]
[1758067351806,4.22046665,236.95,236.92,0.71]
[1758067352222,4.22046665,236.95,236.91,0.13]
[1758067352740,14.77121575,236.95,236.91,0.84]
[1758067352914,14.77121575,236.95,236.92,0.71]
[1758067353114,14.77121575,236.95,236.93,0.71]
[1758067353823,14.77121575,236.95,236.91,0.84]
[1758067354408,15.44121575,236.95,236.91,0.13]
[1758067354609,26.0,236.92,236.91,0.13]
[1758067355630,30.22083403,236.92,236.91,0.13]
[1758067359428,30.22083403,236.92,236.91,0.83]
[1758067359632,30.88083403,236.92,236.91,0.13]
[1758067359841,30.22083403,236.92,236.91,0.13]
[1758067362440,31.99665471,236.92,236.91,0.13]
[1758067364024,32.94097785,236.92,236.91,0.13]
[1758067364225,35.74028866,236.92,236.91,0.13]
[1758067365732,0.28432314,236.91,236.88,0.03]
[1758067365936,26.28432314,236.89,236.88,0.03]
[1758067366116,31.51945463,236.89,236.88,0.03]
[1758067366725,30.85945463,236.89,236.88,0.03]
[1758067367335,35.08082319,236.89,236.88,0.03]
[1758067367667,35.74082319,236.89,236.88,0.03]
[1758067369528,4.57513149,236.89,236.88,0.03]
[1758067369731,4.22065588,236.93,236.88,0.73]
[1758067370055,1.78141189,236.92,236.88,0.73]
[1758067370234,26.0,236.9,236.88,0.73]
[1758067370433,4.22065588,236.93,236.88,0.73]
[1758067370634,26.0,236.9,236.88,0.73]
[1758067371348,30.22110863,236.91,236.88,0.73]
[1758067371738,2.20454593,236.94,236.88,4.95152079]
[1758067371940,1.7820501,236.93,236.89,0.7]
[1758067372140,1.7820501,236.93,236.9,0.7]
[1758067372443,1.7820501,236.93,236.91,0.7]
[1758067372444,26.0,236.92,236.91,0.7]
[1758067372641,26.0,236.92,236.88,0.03]
[1758067372826,1.78210263,236.91,236.89,0.7]
[1758067373021,1.78210263,236.91,236.9,0.7]
[1758067373252,30.22099566,236.92,236.9,0.7]
[1758067373454,30.22099566,236.92,236.91,0.7]
[1758067373649,32.00327941,236.92,236.91,0.7]
[1758067373831,35.47128738,236.92,236.88,0.03]
[1758067374031,5.25029172,236.91,236.88,0.03]
[1758067374238,26.0,236.89,236.88,0.03]
[1758067374442,30.59029172,236.89,236.88,0.03]
[1758067374753,9.47166028,236.89,236.88,0.03]
[1758067375058,32.94797545,236.89,236.88,0.03]
[1758067375232,9.75598342,236.89,236.88,0.03]
[1758067375424,6.28797545,236.89,236.88,0.03]
[1758067375649,32.94797545,236.89,236.88,0.03]
[1758067375828,9.09598342,236.89,236.88,0.03]
[1758067376150,6.28797545,236.89,236.88,0.03]
[1758067376548,32.28797545,236.89,236.88,0.03]
[1758067376729,9.09598342,236.89,236.88,0.03]
[1758067376930,6.28797545,236.89,236.88,0.03]
[1758067378049,6.00365231,236.89,236.88,0.7]
[1758067378557,6.00365231,236.89,236.88,0.03]
[1758067381668,32.00365231,236.89,236.88,0.03]
[1758067381846,8.81166028,236.89,236.88,0.03]
[1758067382044,6.00365231,236.89,236.88,0.03]
[1758067382548,27.78085328,236.89,236.88,0.03]
[1758067382740,1.78085328,236.89,236.88,0.03]
[1758067383973,1.78085328,236.89,236.88,0.7]
[1758067384173,2.73517642,236.89,236.88,0.03]
[1758067384665,32.95654498,236.89,236.88,0.03]
[1758067384865,35.76280677,236.89,236.88,0.03]
[1758067386769,49.35840078,236.89,236.88,0.03]
[1758067388549,4.58711507,236.89,236.88,0.74]
[1758067388749,2.26555535,236.92,236.88,0.74]
[1758067388750,0.06,236.92,236.88,0.74]
[1758067389265,4.28091397,236.92,236.88,0.74]
[1758067389471,1.78057238,236.91,236.88,0.03]
[1758067389666,26.0,236.89,236.88,0.03]
[1758067389966,30.58555423,236.89,236.88,0.03]
[1758067390175,27.78057238,236.89,236.88,0.74]
[1758067390347,4.28091397,236.92,236.88,0.74]
[1758067390547,26.0,236.9,236.88,0.74]
[1758067390871,26.0,236.9,236.89,0.71]
[1758067391246,1.78032727,236.9,236.89,0.71]
[1758067391761,1.78032727,236.91,236.89,0.71]
[1758067392073,27.78021848,236.9,236.89,0.71]
[1758067392369,26.0,236.89,236.88,0.03]
[1758067392962,26.0,236.89,236.88,0.74]
[1758067393667,12.81672356,236.92,236.88,0.74]
[1758067393668,0.06,236.92,236.88,0.74]
[1758067393857,0.06,236.95,236.88,0.74]
[1758067394675,4.2803289,236.95,236.88,4.96141136]
[1758067394879,4.2803289,236.95,236.89,0.71]
[1758067396262,4.2803289,236.95,236.89,4.93132216]
[1758067396464,4.2803289,236.95,236.9,0.71]
[1758067396653,4.2803289,236.95,236.88,0.03]
[1758067396654,1.77984096,236.94,236.88,0.03]
[1758067396843,0.28432314,236.91,236.88,0.03]
[1758067397169,30.86688162,236.91,236.88,0.03]
[1758067397378,26.0,236.89,236.88,0.03]
[1758067397551,27.77924159,236.89,236.88,0.03]
[1758067397746,26.0,236.89,236.88,0.03]
[1758067398164,6.00068412,236.89,236.88,0.03]
[1758067402378,32.00068412,236.89,236.88,0.74]
[1758067402676,26.0,236.89,236.88,0.74]
[1758067403057,30.22136856,236.89,236.88,0.74]
[1758067403777,30.22136856,236.89,236.88,0.03]
[1758067404351,4.50545622,236.91,236.88,0.74]
[1758067404554,1.77980935,236.9,236.88,0.74]
[1758067405774,4.22136856,236.89,236.88,0.74]
[1758067406884,4.22119037,236.9,236.88,0.74]
[1758067407257,4.22119037,236.9,236.88,0.03]
[1758067408572,30.22119037,236.9,236.89,0.71]
[1758067408759,32.00105282,236.9,236.89,0.71]
[1758067409159,32.00105282,236.9,236.88,0.03]
[1758067409380,30.22119037,236.9,236.88,0.74]
[1758067410058,30.22100484,236.92,236.89,0.71]
[1758067410262,0.06,236.95,236.9,0.71]
[1758067410468,1.84050318,236.95,236.9,0.71]
[1758067410770,0.06,236.95,236.9,0.71]
[1758067411476,0.06,236.95,236.91,13.59559401]
[1758067411779,0.06,236.95,236.92,4.93083403]
[1758067412168,0.06,236.95,236.92,4.22083403]
[1758067412363,0.06,236.95,236.93,0.71]
[1758067412789,0.06,236.95,236.94,4.22047775]
[1758067413303,0.06,236.95,236.94,4.93047775]
[1758067416683,0.06,236.95,236.94,0.71]
[1758067417182,0.06,236.95,236.94,4.93047775]
[1758067417586,0.06,236.95,236.94,37.59047775]
[1758067421395,0.06,236.95,236.94,51.18607176]
[1758067422812,0.06,236.95,236.94,51.16607176]
[1758067423012,0.06,236.95,236.94,4.93047775]
[1758067423215,0.06,236.95,236.94,32.64]
[1758067425802,0.06,236.95,236.94,33.34]
[1758067429016,0.06,236.95,236.94,0.7]
[1758067429315,0.06,236.95,236.94,33.34]
[1758067430500,0.06,236.95,236.94,37.56047775]
[1758067430706,0.06,236.95,236.94,51.15607176]
[1758067432528,0.06,236.95,236.94,4.92047775]
[1758067432817,0.06,236.95,236.94,37.54047775]
[1758067435419,0.06,236.95,236.94,4.92047775]
[1758067435608,0.06,236.95,236.94,37.54047775]
[1758067436010,0.06,236.95,236.94,37.52047775]
[1758067436822,0.06,236.95,236.94,4.92047775]
[1758067437020,0.06,236.95,236.94,37.52047775]
[1758067437222,0.06,236.95,236.94,51.11607176]
[1758067440207,0.06,236.95,236.94,4.22047775]
[1758067440534,0.06,236.95,236.94,36.82047775]
[1758067441532,0.06,236.95,236.94,37.49047775]
[1758067441706,0.06,236.95,236.94,36.82047775]
[1758067442537,0.06,236.95,236.94,37.49047775]
[1758067443239,0.06,236.95,236.94,37.47047775]
[1758067449105,0.06,236.95,236.94,51.06607176]
[1758067450238,0.06,236.95,236.94,18.48607176]
[1758067450412,0.06,236.95,236.94,51.06607176]
[1758067452319,0.06,236.95,236.93,4.22063691]
[1758067452529,0.06,236.95,236.94,32.58]
[1758067454339,0.06,236.95,236.94,36.80047775]
[1758067454539,0.06,236.95,236.94,37.51047775]
[1758067455043,0.06,236.95,236.94,4.93047775]
[1758067455216,0.06,236.95,236.94,37.51047775]
[1758067455842,0.06,236.95,236.94,51.10607176]
[1758067465642,0.06,236.98,236.97,39.59559401]
[1758067465952,0.06,236.98,236.97,72.17559401]
[1758067466243,0.06,236.98,236.97,72.88559401]
[1758067467730,0.06,236.98,236.97,77.10553746]
[1758067469640,1e-08,236.98,236.97,150.0898606]
[1758067469954,0.06,237.01,236.97,150.0898606]
[1758067469955,0.06,237.01,237.0,39.87991715]
[1758067470254,1e-08,237.01,237.0,72.88185807]
[1758067470455,1e-08,237.01,237.0,73.59185807]
[1758067473832,1e-08,237.01,237.0,77.81126735]
[1758067474755,1e-08,237.01,237.0,150.51126735]
[1758067474946,1e-08,237.01,237.0,150.08932643]
[1758067475656,1e-08,237.04,237.03,39.59559401]
[1758067475846,1e-08,237.06,237.05,0.28432314]
[1758067476049,1e-08,237.06,237.05,40.30176907]
[1758067476255,1e-08,237.06,237.05,73.59176907]
[1758067477054,1e-08,237.09,237.08,39.87991715]
[1758067477230,1e-08,237.09,237.08,145.15991715]
[1758067477433,1e-08,237.09,237.08,150.08790264]
[1758067478649,1e-08,237.09,237.08,150.06790264]
[1758067479164,0.06,237.16,237.09,0.28432314]
[1758067479455,0.06,237.16,237.13,44.09701325]
[1758067479653,0.06,237.16,237.13,77.78872286]
[1758067480156,0.06,237.16,237.13,45.22872286]
[1758067480353,0.06,237.16,237.13,77.78872286]
[1758067480654,0.06,237.16,237.13,77.36701325]
[1758067483149,1e-08,237.14,237.13,77.36701325]
[1758067483561,0.71000001,237.14,237.13,76.37269011]
[1758067483859,1e-08,237.14,237.13,43.81269011]
[1758067484047,0.71000001,237.14,237.13,76.37269011]
[1758067484640,1e-08,237.14,237.13,76.37269011]
[1758067486090,1e-08,237.14,237.09,72.7]
[1758067486091,0.71000001,237.14,237.09,72.7]
[1758067486249,0.71,237.13,237.1,50.51521359]
[1758067486452,0.71,237.12,237.1,50.51521359]
[1758067486655,0.71000001,237.14,237.1,61.05928782]
[1758067487476,1e-08,237.14,237.1,61.05928782]
[1758067487687,0.71000001,237.14,237.1,61.05928782]
[1758067487894,0.71,237.13,237.1,61.05928782]
[1758067490361,0.71,237.12,237.08,4.21782895]
[1758067490678,1e-08,237.14,237.08,4.21782895]
[1758067490679,0.71,237.11,237.1,0.03]
[1758067490864,0.71,237.11,237.1,32.59]
[1758067492073,0.71,237.11,237.1,36.80762969]
[1758067496797,0.72,237.13,237.1,36.80762969]
[1758067496998,0.72,237.12,237.1,36.80762969]
[1758067497497,1e-08,237.14,237.11,14.29559401]
[1758067497790,1e-08,237.14,237.12,32.56]
[1758067497995,1e-08,237.14,237.12,33.26]
[1758067498991,1e-08,237.14,237.13,4.2170961]
[1758067499207,1e-08,237.14,237.13,4.9170961]
[1758067499773,1e-08,237.14,237.13,18.51269011]
[1758067502309,1e-08,237.14,237.13,17.81269011]
[1758067502710,1e-08,237.14,237.13,36.7770961]
[1758067503012,1e-08,237.14,237.13,32.56]
[1758067503502,1e-08,237.14,237.13,36.2770961]
[1758067503887,1e-08,237.14,237.13,4.2170961]
[1758067504086,0.72000001,237.14,237.13,32.56]
[1758067504476,0.72000001,237.14,237.1,0.03]
[1758067504678,4.93696186,237.14,237.11,32.56]
[1758067504912,0.72,237.13,237.11,32.56]
[1758067505289,0.72,237.12,237.11,32.56]
[1758067505677,0.72,237.12,237.1,0.03]
[1758067505921,0.72,237.11,237.1,0.03]
[1758067506083,0.72,237.11,237.1,32.59]
[1758067506799,4.21696186,237.14,237.1,32.59]
[1758067506800,0.69,237.13,237.1,32.59]
[1758067507000,0.69,237.12,237.1,0.03]
[1758067507196,0.69,237.12,237.11,32.56]
[1758067509899,0.69,237.12,237.1,0.03]
[1758067509900,4.9073274,237.12,237.1,0.03]
[1758067510401,2.06738841,237.11,237.1,0.03]
[1758067510605,28.06738841,237.11,237.1,0.03]
[1758067510783,28.75738841,237.11,237.1,0.03]
[1758067510986,2.75738841,237.11,237.1,0.03]
[1758067511485,32.97484022,237.11,237.1,0.03]
[1758067513685,46.57043423,237.11,237.1,0.03]
[1758067514311,48.2601586,237.11,237.1,0.03]
[1758067514507,48.2601586,237.11,237.07,0.03]
[1758067514508,13.87991715,237.1,237.07,0.03]
[1758067514698,26.0,237.08,237.07,0.03]
[1758067514887,27.78306527,237.08,237.07,0.03]
[1758067515088,32.69105076,237.08,237.07,0.03]
[1758067519402,64.61026507,237.08,236.92,4.25068809]
[1758067519615,26.0,237.04,236.94,0.66]
[1758067519922,26.0,237.03,236.92,0.69]
[1758067520124,26.69,237.03,236.92,0.69]
[1758067520292,26.0,236.99,236.92,0.69]
[1758067520705,0.69,236.98,236.92,0.03]
[1758067521395,0.97432314,236.98,236.92,0.03]
[1758067521596,26.97432314,236.98,236.92,0.03]
[1758067522192,26.0,236.94,236.92,0.03]
[1758067522613,26.69,236.94,236.92,0.03]
[1758067523933,26.0,236.94,236.92,0.03]
[1758067524097,26.0,236.94,236.92,0.69]
[1758067524296,30.2206228,236.94,236.92,0.69]
[1758067524515,30.2206228,236.94,236.92,0.03]
[1758067527627,26.0,236.94,236.92,0.03]
[1758067527804,26.69,237.01,236.93,0.66]
[1758067528005,0.28432314,237.0,236.93,0.66]
[1758067528504,26.69,237.01,236.93,0.66]
[1758067528705,4.50373242,237.0,236.93,0.66]
[1758067529719,4.21940928,237.0,236.93,4.88064163]
[1758067529899,30.21940928,237.0,236.94,0.66]
[1758067530101,0.69,236.99,236.94,0.66]
[1758067530314,0.69,236.99,236.92,0.03]
[1758067530315,0.69,236.98,236.92,0.03]
[1758067530821,0.28432314,236.96,236.92,0.03]
[1758067531022,26.0,236.94,236.92,0.03]
[1758067532326,4.22065588,236.93,236.92,0.03]
[1758067534727,26.0,236.93,236.92,0.03]
[1758067534931,26.69,236.93,236.92,0.03]
[1758067535230,26.97432314,236.93,236.92,0.03]
[1758067537530,31.19497902,236.93,236.92,0.03]
[1758067539112,44.79057303,236.93,236.92,0.03]
[1758067540633,31.19497902,236.93,236.92,0.03]
[1758067540819,30.22065588,236.93,236.92,0.03]
[1758067541022,1.69072427,236.98,236.92,0.75]
[1758067541222,26.67,237.0,236.92,0.75]
[1758067541418,26.0,236.96,236.92,0.75]
[1758067541931,26.0,236.95,236.93,0.72]
[1758067542829,26.0,236.95,236.92,0.03]
[1758067543225,26.67,236.95,236.92,0.03]
[1758067543612,4.22047775,236.94,236.92,0.03]
[1758067544733,4.22029964,236.95,236.92,0.03]
[1758067545425,14.77104874,236.95,236.92,0.03]
[1758067545732,15.44104874,236.95,236.92,0.03]
[1758067546119,14.77104874,236.95,236.92,0.03]
[1758067548134,26.0,236.94,236.93,0.72]
[1758067548333,26.0,236.94,236.92,0.03]
[1758067548334,26.67,236.94,236.92,0.03]
[1758067548511,26.0,236.94,236.92,0.03]
[1758067549427,14.77104874,236.95,236.92,0.03]
[1758067551134,4.22029964,236.95,236.92,0.03]
[1758067551337,30.22029964,236.95,236.93,0.72]
[1758067551720,30.22029964,236.95,236.92,0.03]
[1758067551921,30.22029964,236.95,236.92,0.75]
[1758067552935,30.22029964,236.95,236.92,0.03]
[1758067553243,30.22029964,236.95,236.92,0.75]
[1758067553829,30.89029964,236.95,236.92,0.03]
[1758067554028,30.22029964,236.95,236.92,0.03]
[1758067554225,30.22029964,236.95,236.92,0.75]
[1758067554932,30.22029964,236.95,236.92,0.03]
[1758067555131,5.99884839,236.94,236.92,0.03]
[1758067555543,4.22063071,236.94,236.92,0.03]
[1758067555837,4.22063071,236.94,236.93,0.7]
[1758067556036,6.00010533,236.94,236.93,0.7]
[1758067556427,6.00010533,236.94,236.92,0.03]
[1758067556629,1.77947462,236.93,236.92,0.03]
[1758067556840,1.77947462,236.93,236.92,0.73]